fUSD/lending_fUSD_20240114
["ID","MTS","AMOUNT","RATE_DAILY","PERIOD"]
[311627038,1705269040417,-150.0,0.00022803,2]
[311627040,1705269040426,-150.0,0.00022805,2]
[311627042,1705269040435,-46.04736336,0.00022813,2]
[311627086,1705269040838,-176.17,0.00022225,2]
[311627088,1705269040848,-103.95263664,0.00022813,2]
[311627090,1705269040861,-221.00264978,0.00022815,2]
[311627092,1705269040871,-725.0,0.00022824,2]
[311627094,1705269040880,-150.0,0.00022828,2]
[311627096,1705269040890,-150.0,0.00022834,2]
[311627098,1705269040900,-153.2,0.0002284,2]
[311627100,1705269040910,-151.35,0.00022843,2]
[311627102,1705269040919,-150.0,0.00022851,2]
[311627104,1705269040929,-150.0,0.00022851,2]
[311627106,1705269040938,-150.0,0.00022858,2]
[311627108,1705269040948,-150.0,0.00022859,2]
[311627110,1705269040957,-150.0,0.00022863,2]
[311627114,1705269040978,-150.0,0.00022876,2]
[311627116,1705269040989,-150.0,0.00022879,2]
[311627118,1705269040999,-55555.0,0.0002288,2]
[311627120,1705269041009,-150.0,0.00022881,2]
[311627122,1705269041019,-150.0,0.00022883,2]
[311627124,1705269041030,-150.0,0.00022888,2]
[311627126,1705269041040,-218.47,0.00022898,2]
[311627128,1705269041051,-410.88643417,0.000229,2]
[311627130,1705269041061,-379.0093879,0.000229,2]
[311627133,1705269041071,-150.0,0.00022912,2]
[311627135,1705269041081,-150.0,0.00022938,2]
[311627137,1705269041092,-150.0,0.00022938,2]
[311627139,1705269041103,-150.0,0.0002294,2]
[311627141,1705269041113,-150.0,0.00022948,2]
[311627143,1705269041123,-150.0,0.00022953,2]
[311627145,1705269041133,-150.0,0.00022954,2]
[311627147,1705269041143,-313.44466476,0.00022955,2]
[311627149,1705269041153,-150.0,0.00022958,2]
[311627151,1705269041163,-734.75,0.00022962,2]
[311627154,1705269041173,-300.0,0.00022976,2]
[311627156,1705269041184,-5562.11976046,0.00022978,2]
[311627158,1705269041195,-2605.87322867,0.00022978,2]
[311627160,1705269041206,-318.31330327,0.00022978,2]
[311627162,1705269041216,-370.98515418,0.00022978,2]
[311627164,1705269041226,-3100.63978328,0.00022978,2]
[311627166,1705269041236,-158.21757571,0.00022978,2]
[311627168,1705269041245,-245.23625113,0.00022978,2]
[311627171,1705269041255,-546.0789247,0.00022978,2]
[311627173,1705269041265,-306.94907181,0.00022978,2]
[311627175,1705269041275,-284.67879554,0.00022978,2]
[311627177,1705269041285,-393.2582525,0.00022978,2]
[311627179,1705269041295,-255.28226221,0.00022978,2]
[311627181,1705269041305,-2615.44247189,0.00022978,2]
[311627183,1705269041315,-363.56577485,0.00022978,2]
[311627185,1705269041324,-242.20151819,0.00022978,2]
[311627187,1705269041334,-473.62078422,0.00022978,2]
[311627189,1705269041344,-308.66623732,0.00022978,2]
[311627192,1705269041355,-475.03562767,0.00022978,2]
[311627194,1705269041365,-1093.95113279,0.00022978,2]
[311627196,1705269041375,-1040.01518079,0.00022978,2]
[311627198,1705269041386,-282.72411993,0.00022978,2]
[311627200,1705269041395,-248.40576193,0.00022978,2]
[311627202,1705269041405,-263.95992573,0.00022978,2]
[311627204,1705269041415,-5311.83056493,0.00022978,2]
[311627206,1705269041427,-822.25117948,0.00022978,2]
[311627209,1705269041437,-161.22618558,0.00022978,2]
[311627211,1705269041447,-277.81422268,0.00022978,2]
[311627213,1705269041457,-3190.17558918,0.00022978,2]
[311627215,1705269041470,-203.876292,0.00022978,2]
[311627217,1705269041480,-10514.57275179,0.00022978,2]
[311627219,1705269041490,-525.07076067,0.00022978,2]
[311627222,1705269041500,-2294.06747086,0.00022978,2]
[311627224,1705269041510,-1633.12898622,0.00022978,2]
[311627226,1705269041520,-4236.75465784,0.00022978,2]
[311627228,1705269041530,-155.14641957,0.00022978,2]
[311627230,1705269041539,-364.59644785,0.00022978,2]
[311627232,1705269041549,-133.86003259,0.00022979,2]
[311627235,1705269041567,-381.91328504,0.00022979,2]
[311627237,1705269041579,-567.78892446,0.00022979,2]
[311627240,1705269041597,-1059.42780037,0.00022979,2]
[311627242,1705269041608,-150.0,0.00022979,2]
[311627244,1705269041618,-44.71547961,0.0002298,2]
[311627246,1705269041630,-310.08111749,0.0002298,2]
[311627249,1705269041646,-357.9934029,0.0002298,2]
[311627251,1705269041656,-934.77474324,0.0002298,2]
[311627415,1705269042807,-155.0,0.00022766,2]
[311627418,1705269042818,-176.17,0.00022773,2]
[311627421,1705269042827,-319.89340159,0.0002298,2]
[311627424,1705269042843,-18387.11004587,0.0002298,2]
[311627427,1705269042856,-9557.54414539,0.0002298,2]
[311627429,1705269042869,-6072.34232041,0.0002298,2]
[311627431,1705269042880,-153726.94739448,0.0002298,2]
[311627435,1705269042892,-271.3493897,0.0002298,2]
[311627438,1705269042904,-7656.61348886,0.0002298,2]
[311627441,1705269042916,-21961.5737638,0.0002298,2]
[311627446,1705269042928,-2000.95273071,0.0002298,2]
[311627449,1705269042939,-17594.30941208,0.0002298,2]
[311627452,1705269042951,-1646.38371389,0.0002298,2]
[311627455,1705269042966,-20068.18890991,0.0002298,2]
[311627458,1705269042991,-7439.68939238,0.0002298,2]
[311627505,1705269043415,-878.9393226,0.0002298,2]
[311627508,1705269043431,-1973.88584087,0.0002298,2]
[311627724,1705269045559,-6095.98902286,0.0002298,2]
[311627726,1705269045572,-69043.00771403,0.0002298,2]
[311627729,1705269045584,-1340.85450156,0.0002298,2]
[311627735,1705269045632,-2971.93533652,0.0002298,2]
[311627737,1705269045646,-253.7535,0.0002298,2]
[311627744,1705269045697,-29159.08077217,0.0002298,2]
[311627746,1705269045709,-261.60174887,0.0002298,2]
[311627748,1705269045720,-1798.51344613,0.0002298,2]
[311627750,1705269045731,-282.69441946,0.0002298,2]
[311627753,1705269045742,-1490.12425776,0.0002298,2]
[311627756,1705269045763,-3664.22241245,0.0002298,2]
[311628234,1705269052201,-897830.57434741,0.0002298,2]
[311628235,1705269053016,-421.842,0.0002298,2]
[311628236,1705269053051,-235.04520878,0.00022128,2]
[311628237,1705269053060,-54.23969285,0.0002298,2]
[311628238,1705269053076,-292.86573806,0.0002298,2]
[311628239,1705269053088,-668.75659888,0.0002298,2]
[311628240,1705269053161,-552.73904551,0.00022977,2]
[311628241,1705269093240,5000.0,0.00022028,2]
[311628242,1705269096596,737.6,0.00022082,2]
[311628243,1705269098013,2500.0,0.00022024,2]
[311628244,1705269123523,500.0,0.00022028,2]
[311628245,1705269148399,458.14179625,0.00022024,2]
[311628246,1705269153893,14243.6985,0.00022028,2]
[311628247,1705269159781,100000.0,0.00022029,2]
[311628248,1705269165486,1353.3043,0.00022028,2]
[311628249,1705269171305,628.93,0.00020047,2]
[311628250,1705269179497,1395.78317742,0.00022,2]
[311628251,1705269187859,221.68,0.00021958,2]
[311628252,1705269200932,294.5248,0.00022029,2]
[311628253,1705269248732,320.999999,0.0002,2]
[311628254,1705269251607,378.2466,0.00022027,2]
[311628255,1705269276539,954.42,0.00021897,2]
[311628256,1705269290532,26296.3677,0.00022027,2]
[311628257,1705269296769,1002.1228,0.00022027,2]
[311628258,1705269312620,259.16,0.0002188,2]
[311628259,1705269316959,167.88,0.0002188,2]
[311628260,1705269333747,100000.0,0.00022027,2]
[311628261,1705269338777,2500.0,0.00022027,2]
[311628262,1705269352337,26446.0502,0.00022027,2]
[311628263,1705269473590,3723.0116,0.00022027,2]
[311628264,1705269513643,204.0,0.00021121,2]
[311628265,1705269513955,5174.6067,0.00022027,2]
[311628266,1705269567762,409.92,0.00021866,2]
[311628267,1705269611564,176.56,0.00021866,2]
[311628268,1705269611987,176.56,0.00021981,2]
[311628269,1705269612259,176.56,0.00022096,2]
[311628270,1705269616297,623.47,0.00019867,2]
[311628271,1705269656420,280.32503726,0.00021979,2]
[311628272,1705269659527,500.0,0.00021746,2]
[311628273,1705269728103,945.06,0.00021762,2]
[311628274,1705269735330,211.54056267,0.00022099,2]
[311628275,1705269755819,3142.27857707,0.00022099,2]
[311628276,1705269765251,245000.0,0.00022027,2]
[311628277,1705269766954,176.86,0.00021771,2]
[311628278,1705269773382,213.7777,0.00022027,2]
[311628279,1705269792023,8359.8173,0.00022027,2]
[311628280,1705269803828,176.22,0.00021766,2]
[311628281,1705269817901,155.62734564,0.00022025,2]
[311628282,1705269836326,3142.27857707,0.00022099,2]
[311628283,1705269836963,472.11,0.00021766,2]
[311628284,1705269842533,1626.63977836,0.00022027,2]
[311628285,1705269872423,12482.64,0.00021791,2]
[311628286,1705269891695,151.63,0.00021942,2]
[311628287,1705269899320,200.0,0.00021779,2]
[311628293,1705269934386,150.49609074,0.0002198,2]
[311628294,1705270010401,672.06,0.0002175,2]
[311628295,1705270046102,-692.19851741,0.000221,2]
[311628296,1705270080131,156.92,0.0002175,2]
[311628297,1705270080339,156.92,0.0002206,2]
[311628298,1705270154307,222.42155007,0.00022027,2]
[311628299,1705270158765,151.401115,0.00022099,2]
[311628300,1705270163086,151.401115,0.00022099,2]
[311628301,1705270164532,151.401115,0.00022099,2]
[311628302,1705270165050,151.401115,0.00022099,2]
[311628303,1705270165676,151.401115,0.00022099,2]
[311628304,1705270166272,151.401115,0.00022099,2]
[311628305,1705270167242,151.401115,0.00022099,2]
[311628306,1705270167551,151.401115,0.00022099,2]
[311628307,1705270168233,151.401115,0.00022099,2]
[311628308,1705270168895,151.401115,0.00022099,2]
[311628309,1705270169553,151.401115,0.00022099,2]
[311628310,1705270173192,302.96537039,0.00022014,2]
[311628311,1705270178003,4432.16,0.00021708,2]
[311628312,1705270184736,154.33,0.00021925,2]
[311628317,1705270204514,22328.2888723,0.00022099,2]
[311628318,1705270207348,259.16,0.00021695,2]
[311628319,1705270226348,933.11,0.00021704,2]
[311628403,1705270233036,-314.08501124,0.000221,2]
[311628404,1705270233048,-1549.54404629,0.000221,2]
[311628405,1705270233057,-150.0,0.00022124,2]
[311628406,1705270233067,-155.15859743,0.00022125,2]
[311628407,1705270233076,-210.4285035,0.00022125,2]
[311628408,1705270233085,-734.89039337,0.00022125,2]
[311628409,1705270233096,-1040.28791122,0.00022125,2]
[311628410,1705270233106,-155.21565838,0.00022125,2]
[311628411,1705270233115,-254.96667626,0.00022126,2]
[311628412,1705270233125,-953.10962121,0.00022126,2]
[311628413,1705270233135,-1000.0,0.00022126,2]
[311628414,1705270233144,-222.42155007,0.00022127,2]
[311628415,1705270233154,-100369.95564028,0.00022127,2]
[311628416,1705270233166,-1071.35837695,0.00022127,2]
[311628417,1705270233177,-503.15432782,0.00022127,2]
[311628418,1705270233193,-1003.8665897,0.00022127,2]
[311628419,1705270233205,-1062.38997499,0.00022127,2]
[311628420,1705270233216,-2864.87771596,0.00022127,2]
[311628421,1705270233228,-937.93475933,0.00022127,2]
[311628422,1705270233239,-1897.33113849,0.00022127,2]
[311628423,1705270233251,-25247.0140967,0.00022127,2]
[311628424,1705270233262,-5768.39902246,0.00022127,2]
[311628425,1705270233274,-819.09312441,0.00022127,2]
[311628426,1705270233285,-714.69912125,0.00022127,2]
[311628427,1705270233297,-2133.31575589,0.00022127,2]
[311628428,1705270233308,-9040.24885938,0.00022127,2]
[311628429,1705270233319,-4560.72039999,0.00022127,2]
[311628430,1705270233336,-3984.1450595,0.00022127,2]
[311628431,1705270233353,-4051.65137392,0.00022127,2]
[311628432,1705270233364,-2411.85485992,0.00022127,2]
[311628433,1705270233375,-517.82129114,0.00022127,2]
[311628434,1705270233388,-1071.62439854,0.00022127,2]
[311628435,1705270233399,-4517.25624389,0.00022127,2]
[311628436,1705270233411,-1061.32060187,0.00022127,2]
[311628438,1705270233423,-334.50747262,0.00022127,2]
[311628440,1705270233435,-442.76851,0.00022127,2]
[311628446,1705270233473,-762.1152653,0.00022127,2]
[311628448,1705270233485,-4102.82942095,0.00022127,2]
[311628449,1705270233496,-126984.3386282,0.00022127,2]
[311628450,1705270233506,-52261.686,0.00022127,2]
[311628451,1705270233515,-163.69448281,0.00022128,2]
[311628452,1705270233524,-156.01597444,0.00022128,2]
[311628453,1705270233534,-200.07,0.00022136,2]
[311628454,1705270233543,-10481.06,0.00022211,2]
[311628455,1705270233557,-499.99,0.00022211,2]
[311628456,1705270233567,-150.99,0.00022211,2]
[311628457,1705270233577,-176.56,0.00022211,2]
[311628458,1705270233587,-222.42155007,0.00022227,2]
[311628459,1705270233599,-9999.99,0.00022311,2]
[311628460,1705270233608,-9999.99,0.00022311,2]
[311628461,1705270233617,-176.56,0.00022326,2]
[311628462,1705270233626,-156.92,0.00022371,2]
[311628463,1705270233635,-1041.20706467,0.00022404,2]
[311628464,1705270233645,-176.56,0.00022442,2]
[311628465,1705270233655,-6134.07088639,0.000225,2]
[311628466,1705270233664,-154.33,0.00022514,2]
[311628467,1705270233674,-561.810597,0.00022552,2]
[311628468,1705270233685,-176.56,0.00022557,2]
[311628469,1705270233695,-176.56,0.00022672,2]
[311628470,1705270233705,-156.92,0.00022682,2]
[311628471,1705270233715,-933.11,0.00022682,2]
[311628472,1705270233725,-1041.20706467,0.00022691,2]
[311628473,1705270233735,-150.0,0.00022747,2]
[311628474,1705270233745,-222.49826248,0.00022748,4]
[311628475,1705270233754,-156.0,0.00022766,2]
[311628476,1705270233764,-176.56,0.00022787,2]
[311628477,1705270233773,-500.0,0.00022796,2]
[311628478,1705270233814,-4001.729681,0.000228,2]
[311628479,1705270233824,-500.0,0.00022816,2]
[311628480,1705270233834,-150.0,0.00022863,2]
[311628481,1705270233845,-5000.0,0.0002288,2]
[311628482,1705270233854,-169.66136031,0.0002288,2]
[311628483,1705270233864,-6210.4766975,0.00022899,2]
[311628484,1705270233873,-150.0,0.00022899,2]
[311628485,1705270233882,-6137.0962389,0.000229,2]
[311628486,1705270233895,-3803.95412074,0.000229,2]
[311628487,1705270233907,-1495.10991762,0.000229,2]
[311628488,1705270235025,204.0,0.00021281,2]
[311628498,1705270238534,-44118.83972274,0.000229,2]
[311628499,1705270238544,-377.6884913,0.000229,6]
[311628500,1705270238554,-176.56,0.00022902,2]
[311628501,1705270238564,-150.0,0.00022962,2]
[311628502,1705270238573,-229.48307305,0.00022977,2]
[311628503,1705270238582,-207.47861613,0.00022977,2]
[311628504,1705270238593,-217.23658877,0.00022977,2]
[311628505,1705270238603,-363.66366697,0.00022977,2]
[311628506,1705270238612,-192.60042394,0.00022977,2]
[311628507,1705270238621,-179.994148,0.00022977,2]
[311628508,1705270238630,-200.49192303,0.00022978,2]
[311628509,1705270238640,-161.35063331,0.00022978,2]
[311628510,1705270238650,-386.98140317,0.00022978,2]
[311628511,1705270238660,-3932.10395113,0.00022978,2]
[311628512,1705270238669,-179.60156692,0.00022978,2]
[311628513,1705270238679,-2452.61172856,0.00022978,2]
[311628514,1705270238689,-399.06517884,0.00022978,2]
[311628515,1705270238699,-862.0,0.00022979,2]
[311628516,1705270238709,-1041.20706466,0.00022979,2]
[311628517,1705270238718,-521.01908608,0.00022979,2]
[311628518,1705270238728,-370303.95416117,0.00022979,2]
[311628519,1705270238737,-150.01,0.00022979,2]
[311628520,1705270238747,-3293.74903118,0.00022979,2]
[311628521,1705270238756,-1218508.42827218,0.00022979,2]
[311628522,1705270238766,-280716.5668824,0.0002298,2]
[311628523,1705270238775,-712.85,0.0002298,2]
[311628524,1705270238785,-156.92,0.00022993,2]
[311628525,1705270238794,-1517.938638,0.00022998,2]
[311628526,1705270238804,-201.6432844,0.00022998,2]
[311628527,1705270238813,-726.57819148,0.00022998,2]
[311628528,1705270238823,-151.401115,0.00022998,3]
[311628529,1705270238832,-151.401115,0.00022998,3]
[311628530,1705270238842,-151.401115,0.00022998,3]
[311628531,1705270238853,-151.401115,0.00022998,3]
[311628532,1705270238862,-151.401115,0.00022998,3]
[311628533,1705270238871,-151.401115,0.00022998,3]
[311628534,1705270238880,-151.401115,0.00022998,3]
[311628535,1705270238890,-151.401115,0.00022998,3]
[311628536,1705270238899,-151.401115,0.00022998,3]
[311628537,1705270238909,-151.401115,0.00022998,3]
[311628538,1705270238918,-151.401115,0.00022998,3]
[311628539,1705270238927,-151.401115,0.00022998,3]
[311628540,1705270238937,-151.401115,0.00022998,3]
[311628541,1705270238947,-151.401115,0.00022998,3]
[311628542,1705270238956,-151.401115,0.00022998,3]
[311628544,1705270238965,-151.401115,0.00022998,3]
[311628546,1705270238974,-151.401115,0.00022998,3]
[311628548,1705270238983,-151.401115,0.00022998,3]
[311628550,1705270238993,-151.401115,0.00022998,3]
[311628552,1705270239003,-151.401115,0.00022998,3]
[311628554,1705270239012,-151.401115,0.00022998,3]
[311628556,1705270239022,-151.401115,0.00022998,3]
[311628558,1705270239031,-151.401115,0.00022998,3]
[311628560,1705270239040,-151.401115,0.00022998,3]
[311628562,1705270239049,-151.401115,0.00022998,3]
[311628564,1705270239059,-151.401115,0.00022998,3]
[311628566,1705270239068,-151.401115,0.00022998,3]
[311628568,1705270239077,-151.401115,0.00022998,3]
[311628570,1705270239086,-151.401115,0.00022998,3]
[311628572,1705270239096,-151.401115,0.00022998,3]
[311628574,1705270239105,-151.401115,0.00022998,3]
[311628576,1705270239115,-151.401115,0.00022998,3]
[311628578,1705270239124,-151.401115,0.00022998,3]
[311628580,1705270239134,-151.401115,0.00022998,3]
[311628583,1705270239144,-151.401115,0.00022998,3]
[311628584,1705270239153,-151.401115,0.00022998,3]
[311628586,1705270239163,-151.401115,0.00022998,3]
[311628588,1705270239173,-151.401115,0.00022998,3]
[311628590,1705270239182,-151.401115,0.00022998,3]
[311628592,1705270239191,-151.401115,0.00022998,3]
[311628596,1705270239212,-551.37931886,0.00022999,2]
[311628598,1705270239222,-332726.51772079,0.00022999,2]
[311628600,1705270239231,-1000.0,0.00022999,2]
[311628602,1705270239241,-150.0,0.00022999,2]
[311628604,1705270239251,-300.0,0.00022999,2]
[311628606,1705270239260,-300.0,0.00022999,2]
[311628608,1705270239270,-718873.88760091,0.00023,2]
[311628611,1705270239290,-1588.43857689,0.00023,2]
[311628613,1705270239302,-898.15354925,0.00023,2]
[311628616,1705270239314,-367.06866657,0.00023,2]
[311628629,1705270239436,-17537.5829455,0.00023,2]
[311628632,1705270239455,-56014.55357618,0.00023,2]
[311628634,1705270239467,-804.21669734,0.00023,2]
[311628637,1705270239491,-507241.57502164,0.00023,2]
[311628640,1705270239502,-827.91845062,0.00023,2]
[311628642,1705270239514,-4607.82526999,0.00023,2]
[311628644,1705270239528,-425.28,0.00023,2]
[311628648,1705270239549,-493.1829178,0.00023,2]
[311628650,1705270239561,-311.11237464,0.00023,2]
[311628652,1705270239575,-495.64396674,0.00023,2]
[311628654,1705270239587,-2899.39675265,0.00023,2]
[311628657,1705270239601,-23813.35378652,0.00023,2]
[311628659,1705270239613,-5306.89590242,0.00023,2]
[311628662,1705270239634,-249725.00000061,0.00023,2]
[311628727,1705270240334,-23062.47770928,0.00023,2]
[311628729,1705270240346,-1166.20953928,0.00023,2]
[311628736,1705270240393,-30670.29720407,0.00023,2]
[311628744,1705270240458,-603.96565913,0.00023,2]
[311628890,1705270241826,-5034.0,0.00023,2]
[311629003,1705270242712,-714.75,0.00022195,2]
[311629006,1705270242722,-730.0,0.00022979,2]
[311629008,1705270242731,-1576.961229,0.00023,2]
[311629010,1705270242743,-3061.51076384,0.00023,2]
[311629012,1705270242754,-1119.027637,0.00023,2]
[311629015,1705270242765,-11042.60065063,0.00023,2]
[311629017,1705270242776,-5044.89999996,0.00023,2]
[311629019,1705270242789,-377.629412,0.00023,2]
[311629023,1705270242817,-452.57449115,0.00023,2]
[311629025,1705270242828,-2566.53199256,0.00023,2]
[311629030,1705270242861,-1612.64399999,0.00023,2]
[311629036,1705270242906,-115352.71404417,0.00023,2]
[311629042,1705270242954,-6533.19999999,0.00023,2]
[311629049,1705270243013,-6125.38027315,0.00023,2]
[311629052,1705270243024,-504.17700003,0.00023,2]
[311629210,1705270244594,28096.2503,0.00022027,2]
[311629344,1705270245769,-150.01,0.00022999,2]
[311629347,1705270245779,-2474.30565006,0.00022999,2]
[311629349,1705270245790,-290.6731208,0.00022999,2]
[311629351,1705270245800,-141.8268792,0.00023,2]
[311629353,1705270245811,-3160.62626509,0.00023,2]
[311629356,1705270245822,-19695.0928525,0.00023,2]
[311629359,1705270245845,-4131.28245147,0.00023,2]
[311629361,1705270245858,-325.95661418,0.00023,2]
[311629364,1705270245887,-304.84667716,0.00023,2]
[311629365,1705270245898,-2003.9644242,0.00023,2]
[311629366,1705270245909,-5424.9483132,0.00023,2]
[311629367,1705270245947,-4237.15714331,0.00023,2]
[311629369,1705270246007,-417.71718952,0.00023,2]
[311629378,1705270246122,-4663.30384585,0.00023,2]
[311629379,1705270246134,-1370.19300514,0.00023,2]
[311629386,1705270252664,289.9683,0.00022,2]
[311629387,1705270301439,261.34539637,0.00022099,3]
[311629388,1705270306554,150.0,0.00022,2]
[311629397,1705270357354,150.0,0.00022,2]
[311629398,1705270414112,157.14140716,0.00022,2]
[311629399,1705270417147,15695.41125992,0.00022,2]
[311629400,1705270419738,5252.58160905,0.0003,120]
[311629401,1705270421723,14975.30857226,0.00022,2]
[311629402,1705270436919,2524.48576831,0.00022,2]
[311629407,1705270471796,462.35,0.00022029,2]
[311629408,1705270511057,1880.91039073,0.00021982,2]
[311629409,1705270614375,157.94,0.00021972,2]
[311629410,1705270668368,1011.93517598,0.00021752,2]
[311629411,1705270679584,883.96,0.00021954,2]
[311629412,1705270682102,736.61,0.00020033,2]
[311629413,1705270694947,167.88,0.00021925,2]
[311629415,1705270802923,150.0,0.00021925,2]
[311629416,1705270803155,150.0,0.00021925,2]
[311629417,1705270803358,150.0,0.00021925,2]
[311629418,1705270803570,150.0,0.00021925,2]
[311629419,1705270803781,150.0,0.00021925,2]
[311629420,1705270804007,293.36135867,0.00021925,2]
[311629421,1705270821106,158.29,0.00021909,2]
[311629423,1705270954339,204.0,0.00021432,2]
[311629424,1705270972822,630.12,0.00021637,2]
[311629426,1705271097103,250.0,0.00021564,2]
[311629427,1705271100330,3061.74,0.00021564,2]
[311629428,1705271112477,153.76,0.0002178,2]
[311629429,1705271123891,1476.08,0.0002162,2]
[311629431,1705271129046,720.83,0.00019682,2]
[311629432,1705271129319,720.83,0.00021946,2]
[311629433,1705271155398,151.35,0.00021597,2]
[311629434,1705271232106,-151.35,0.00022137,2]
[311629435,1705271232133,-153.79,0.00022174,2]
[311629436,1705271232158,-435.57257883,0.00022177,2]
[311629437,1705271263762,273.52,0.00021586,2]
[311629438,1705271263791,150.0,0.00021586,2]
[311629439,1705271263812,155.42,0.00021586,2]
[311629440,1705271263838,274.12,0.00021586,2]
[311629441,1705271295228,273.52,0.00021581,2]
[311629442,1705271317589,154.47,0.0002174,2]
[311629443,1705271317612,0.21,0.0002174,2]
[311629444,1705271317755,149.79,0.00021929,2]
[311629445,1705271317778,4.89,0.00021929,2]
[311629446,1705271319109,145.11,0.00021579,2]
[311629447,1705271319138,150.0,0.00021579,2]
[311629448,1705271319160,267.28,0.00021579,2]
[311629449,1705271319186,23337.61,0.00021579,2]
[311629463,1705271430109,230.47791,0.00021581,2]
[311629464,1705271430135,265.42209,0.00021581,2]
[311629484,1705271431905,-154.68,0.00022118,2]
[311629485,1705271431916,-150.0,0.00022118,2]
[311629486,1705271431926,-282.87742117,0.00022177,2]
[311629487,1705271431937,-719.05,0.00022178,2]
[311629488,1705271431946,-709.58,0.00022179,2]
[311629489,1705271431956,-715.87,0.0002218,2]
[311629490,1705271431965,-732.84,0.00022181,2]
[311629491,1705271431975,-733.44,0.00022183,2]
[311629492,1705271431984,-300.0,0.00022183,2]
[311629493,1705271431994,-150.0,0.00022183,2]
[311629494,1705271432004,-715.89,0.00022184,2]
[311629495,1705271432013,-1781.0,0.00022184,2]
[311629496,1705271432022,-150.99,0.00022184,2]
[311629497,1705271432031,-1310.51,0.00022184,2]
[311629498,1705271432041,-499.99,0.00022184,2]
[311629499,1705271432050,-726.24,0.00022186,2]
[311629500,1705271432060,-737.55,0.00022189,2]
[311629501,1705271432070,-727.17,0.00022192,2]
[311629502,1705271432080,-736.39,0.00022196,2]
[311629503,1705271432089,-716.21,0.00022201,2]
[311629504,1705271432099,-722.65,0.00022207,2]
[311629505,1705271432113,-733.15,0.00022214,2]
[311629506,1705271432123,-731.24,0.00022222,2]
[311629507,1705271432133,-718.87,0.00022233,2]
[311629508,1705271432142,-732.22,0.00022245,2]
[311629509,1705271432151,-720.94,0.0002226,2]
[311629510,1705271432161,-172.04816617,0.00022272,2]
[311629511,1705271432174,-737.93,0.00022275,2]
[311629512,1705271432183,-1313.27978784,0.00022289,2]
[311629513,1705271432193,-154.68,0.00022307,2]
[311629514,1705271432202,-405.64689418,0.00022368,2]
[311629515,1705271432212,-309.89660202,0.00022369,2]
[311629516,1705271432222,-25088.19491848,0.0002237,2]
[311629517,1705271432231,-15843.07961413,0.00022371,2]
[311629518,1705271432241,-729.94,0.00022372,2]
[311629519,1705271432251,-710.74,0.00022372,2]
[311629520,1705271432260,-726.53,0.00022372,2]
[311629522,1705271432270,-737.56,0.00022372,2]
[311629524,1705271432280,-734.07,0.00022372,2]
[311629526,1705271432290,-154.68,0.00022496,2]
[311629528,1705271432300,-19114.79827511,0.000225,2]
[311629530,1705271432311,-1236.8637156,0.00022543,2]
[311629532,1705271432321,-853.06,0.00022564,2]
[311629535,1705271432331,-17.65460519,0.00022591,2]
[311629538,1705271432346,-711.69539481,0.00022591,2]
[311629541,1705271432356,-732.39,0.00022591,2]
[311629544,1705271432367,-721.46,0.00022591,2]
[311629547,1705271432378,-151.35,0.00022677,2]
[311629551,1705271432387,-1313.27978784,0.00022678,2]
[311629554,1705271432397,-154.68,0.00022684,2]
[311629557,1705271432408,-204.0,0.00022701,2]
[311629560,1705271432422,-157.94,0.00022705,2]
[311629562,1705271432433,-156.0,0.00022766,2]
[311629566,1705271432443,-200.0,0.00022796,2]
[311629569,1705271432453,-331.06300925,0.00022799,3]
[311629572,1705271432463,-5848.64180811,0.00022799,2]